bitfinex/quotes_ETHUSD_20250131
["timestamp","ask_amount","ask_price","bid_price","bid_amount"]
[1738325192305,0.26019371,3327.3,3327.2,3.51106958]
[1738325192458,0.26019371,3327.3,3327.2,3.93983654]
[1738325192797,0.2,3327.3,3327.2,6.93983654]
[1738325192957,0.2,3327.6,3327.2,3.93983654]
[1738325193156,0.2,3327.6,3327.3,0.03004502]
[1738325193493,0.2,3327.6,3327.4,0.44532433]
[1738325193697,0.2,3327.6,3327.4,0.47536907]
[1738325193851,0.06019371,3327.5,3327.4,0.07838032]
[1738325194056,0.06019371,3327.5,3327.4,0.04833617]
[1738325194659,0.2,3327.4,3327.2,3.46291885]
[1738325194854,0.2,3327.4,3327.3,0.04819465]
[1738325195089,0.2,3327.4,3327.3,0.35411642]
[1738325195499,7.40853659,3328.4,3327.3,0.43235788]
[1738325195684,7.40853659,3328.4,3327.6,3.46291885]
[1738325195859,7.40853659,3328.4,3327.7,0.04814098]
[1738325196359,7.40853659,3328.3,3327.7,0.04814098]
[1738325197180,7.40853659,3328.3,3327.7,3.04814098]
[1738325197384,7.40853659,3328.3,3327.7,3.69924696]
[1738325199098,1.83595946,3328.6,3328.1,3.0]
[1738325199413,8.19813659,3328.9,3328.1,3.0]
[1738325199414,8.19813659,3328.9,3328.4,3.46291885]
[1738325200015,8.19813659,3328.9,3328.5,0.04817023]
[1738325200168,0.04519151,3328.8,3328.5,0.04817023]
[1738325200512,0.04519151,3328.8,3328.0,3.46291885]
[1738325200513,0.82433281,3328.7,3328.1,3.0]
[1738325200709,0.82433281,3328.7,3328.2,0.04817023]
[1738325200916,0.82433281,3328.7,3328.0,3.46291885]
[1738325201118,0.82433281,3328.7,3328.1,0.04817023]
[1738325201788,8.19813659,3328.9,3328.4,3.46291885]
[1738325202288,8.19813659,3328.9,3328.5,0.04817023]
[1738325202489,7.40853659,3328.8,3328.5,0.04817023]
[1738325202675,7.40853659,3328.8,3328.1,0.03004207]
[1738325202874,7.40853659,3328.8,3328.2,0.04817023]
[1738325203094,8.22835025,3328.8,3328.2,0.04817023]
[1738325203319,7.40853659,3328.8,3328.4,3.46291885]
[1738325203722,7.40853659,3328.8,3328.5,0.04817023]
[1738325204727,7.40853659,3328.8,3328.5,3.51285874]
[1738325204939,1.83595946,3329.4,3328.6,3.03004028]
[1738325204940,7.40853659,3329.3,3328.6,3.03004028]
[1738325205097,0.7655,3329.6,3328.9,3.46468851]
[1738325205301,0.7655,3329.6,3329.1,2.81438086]
[1738325205714,7.40853659,3329.5,3329.4,2.81438086]
[1738325206034,8.16183659,3329.9,3329.4,2.81438086]
[1738325206239,8.16183659,3329.9,3329.4,2.86255109]
[1738325206591,8.16183659,3329.9,3329.4,2.86201293]
[1738325206787,8.16183659,3329.9,3329.5,0.03003128]
[1738325207195,8.16183659,3329.9,3329.6,0.0476045]
[1738325207596,8.16183659,3329.9,3329.3,3.49309745]
[1738325207797,8.16183659,3329.9,3329.7,0.0476045]
[1738325207997,8.16183659,3329.9,3329.3,3.49309745]
[1738325208200,8.16183659,3329.9,3329.8,0.04751188]
[1738325208742,8.16183659,3329.9,3329.4,3.0]
[1738325208927,8.16183659,3329.9,3329.5,0.04751188]
[1738325209697,8.16183659,3329.9,3329.0,3.0]
[1738325209916,8.16183659,3329.9,3329.1,0.04746313]
[1738325210201,8.16183659,3329.9,3329.2,0.0300346]
[1738325210602,8.16183659,3329.9,3329.4,3.0]
[1738325211018,0.03019151,3329.8,3328.9,3.46306614]
[1738325211344,7.40853659,3329.7,3329.0,0.03003481]
[1738325211527,7.40853659,3329.7,3329.1,0.39622216]
[1738325211847,7.40853659,3329.7,3329.3,3.46306614]
[1738325212440,7.40853659,3329.7,3329.4,0.0769446]
[1738325213073,7.40853659,3329.7,3329.4,0.04691206]
[1738325213835,7.40853659,3329.7,3328.9,3.49310117]
[1738325214064,7.40853659,3329.7,3329.5,0.04689743]
[1738325214270,7.40853659,3329.7,3329.1,0.03003256]
[1738325214464,7.40853659,3329.7,3329.6,0.04689743]
[1738325214679,7.40853659,3329.7,3328.9,3.46306614]
[1738325214860,7.40853659,3329.7,3329.6,0.04691693]
[1738325215061,7.8284938,3329.7,3328.9,3.46306614]
[1738325215268,7.8284938,3329.7,3329.6,0.04691693]
[1738325215470,7.8284938,3329.7,3328.9,3.46306614]
[1738325215639,7.8284938,3329.7,3329.6,0.04690231]
[1738325215838,7.8284938,3329.7,3328.9,3.49310226]
[1738325216051,7.8284938,3329.7,3329.6,0.04690718]
[1738325216249,7.8284938,3329.7,3328.9,3.49310226]
[1738325216470,7.40853659,3329.7,3329.6,0.04690718]
[1738325216671,7.40853659,3329.7,3328.9,3.84241249]
[1738325217150,7.40853659,3329.7,3329.0,0.04701931]
[1738325217355,7.40853659,3329.6,3329.0,0.04701931]
[1738325217575,7.40853659,3329.6,3329.1,0.03003425]
[1738325217777,7.40853659,3329.6,3329.0,0.07705358]
[1738325217941,7.40853659,3329.6,3329.0,0.03003427]
[1738325218141,7.40853659,3329.6,3329.1,0.04701931]
[1738325218487,7.40853659,3329.6,3328.9,3.46306614]
[1738325218685,7.40853659,3329.6,3329.2,0.04701931]
[1738325218989,7.40853659,3329.6,3329.3,0.04701931]
[1738325219374,7.40853659,3329.6,3329.0,0.03003431]
[1738325219572,7.40853659,3329.6,3329.4,0.04701931]
[1738325219741,8.14939025,3329.6,3328.6,3.17867401]
[1738325219941,7.40853659,3329.5,3328.7,0.04701931]
[1738325220291,7.40853659,3329.5,3329.0,3.0]
[1738325220754,7.40853659,3329.5,3329.1,0.04701931]
[1738325221212,0.0075,3329.3,3329.1,0.04701931]
[1738325221500,0.015,3329.3,3329.1,0.04701931]
[1738325221676,0.0075,3328.9,3327.7,3.46306614]
[1738325221996,0.8112,3328.6,3327.8,0.38873652]
[1738325222161,0.03019151,3328.5,3327.8,0.04242991]
[1738325222361,0.03019151,3328.5,3327.8,3.0]
[1738325222698,0.03019151,3328.5,3327.9,0.04242991]
[1738325222995,7.40853659,3328.4,3327.7,3.46306614]
[1738325223405,7.40853659,3328.4,3327.8,0.04273652]
[1738325223554,0.03019151,3328.3,3327.8,0.04273652]
[1738325223761,0.0075,3328.1,3327.0,0.61568866]
[1738325224092,0.0075,3328.1,3327.1,0.04296534]
[1738325224093,0.7672,3327.8,3327.1,0.04296534]
[1738325224328,7.40853659,3327.7,3327.1,0.04296534]
[1738325224599,7.40853659,3327.7,3327.1,0.3806576]
[1738325224796,7.40853659,3327.7,3326.9,3.46306614]
[1738325225093,0.03019151,3327.6,3327.2,0.0432478]
[1738325225292,0.03019151,3327.6,3326.9,3.46306614]
[1738325225450,0.03019151,3327.6,3327.3,0.0432478]
[1738325225666,0.03019151,3327.6,3327.0,3.0]
[1738325225868,7.40853659,3327.7,3327.1,0.0433501]
[1738325226068,7.40853659,3328.0,3327.4,3.0]
[1738325226321,7.40853659,3328.0,3327.8,3.0]
[1738325226514,0.7824,3328.3,3327.9,0.0433501]
[1738325229223,0.04519151,3328.2,3327.9,0.0433501]
[1738325229578,0.0075,3327.8,3326.5,6.65536614]
[1738325229779,0.7735,3327.5,3326.5,6.65536614]
[1738325230124,7.4387281,3327.4,3326.5,6.65536614]
[1738325230321,7.40853659,3327.4,3326.5,6.65536614]
[1738325230477,7.40853659,3327.4,3326.6,3.0]
[1738325230683,7.40853659,3327.4,3326.7,1.00769543]
[1738325232225,7.40853659,3327.4,3326.7,0.04215882]
[1738325232393,0.7957,3327.2,3326.7,0.04215882]
[1738325232732,0.8107,3327.0,3325.3,1.202723]
[1738325232884,0.55,3326.6,3325.6,0.16817723]
[1738325233079,0.7957,3326.4,3325.6,0.16817723]
[1738325233275,0.03019151,3326.3,3325.7,0.03817154]
[1738325233480,9.24449605,3326.3,3325.7,0.03817154]
[1738325233883,9.24449605,3326.3,3325.8,3.46306614]
[1738325234191,9.24449605,3326.3,3325.9,0.38519855]
[1738325235183,9.24449605,3326.3,3325.9,0.03889194]
[1738325235626,9.24449605,3326.3,3325.5,3.0]
[1738325236223,0.03019151,3326.2,3325.6,0.03889194]
[1738325236910,0.015,3326.1,3325.6,0.03889194]
[1738325237485,0.015,3326.2,3325.1,3.0]
[1738325237830,9.24449605,3326.3,3325.4,3.46306614]
[1738325238036,0.03019151,3326.2,3325.4,3.46306614]
[1738325238402,0.03019151,3326.2,3325.5,0.03911598]
[1738325238715,1.83595946,3326.3,3325.5,0.06918383]
[1738325238899,1.83595946,3326.3,3325.5,0.03911598]
[1738325239094,0.0075,3326.2,3325.2,0.64931365]
[1738325239338,0.03019151,3326.1,3325.3,0.03911598]
[1738325239688,0.2669351,3326.2,3325.3,0.03911598]
[1738325240027,0.29712661,3326.2,3325.3,0.03911598]
[1738325240333,0.753,3326.0,3325.3,0.03911598]
[1738325240630,0.753,3326.0,3325.1,3.0]
[1738325240832,0.78319151,3326.0,3325.4,0.03912572]
[1738325241029,0.753,3326.0,3325.1,3.74581849]
[1738325241235,0.753,3326.0,3325.5,0.03912572]
[1738325241439,0.753,3326.0,3325.2,0.03007053]
[1738325241886,0.753,3326.0,3325.4,3.46306614]
[1738325242087,2.62835946,3326.3,3325.5,0.38028597]
[1738325242288,2.62835946,3326.3,3325.6,0.03912085]
[1738325243923,1.83595946,3326.3,3325.9,3.0]
[1738325244233,1.83595946,3326.3,3326.0,0.03952498]
[1738325244589,1.83595946,3326.3,3326.0,0.68978409]
[1738325246440,1.83595946,3326.3,3326.1,0.03006167]
[1738325246644,0.03019151,3326.6,3326.0,0.03952498]
[1738325246868,0.806,3326.7,3326.2,0.03784699]
[1738325246995,0.806,3326.7,3325.9,3.0]
[1738325247190,0.806,3326.7,3326.3,0.03784699]
[1738325247439,0.806,3326.7,3325.9,3.69344247]
[1738325247586,0.806,3326.7,3326.4,0.03784699]
[1738325247791,0.806,3326.7,3325.9,3.69344247]
[1738325248095,0.806,3326.7,3326.0,0.03784699]
[1738325248742,0.806,3326.7,3326.1,0.03006251]
[1738325249232,0.806,3326.7,3326.2,3.03784699]
[1738325250393,1.83595946,3327.3,3326.4,2.81919541]
[1738325250618,1.83595946,3327.3,3326.5,3.03005773]
[1738325250955,1.83595946,3327.3,3326.7,2.81919541]
[1738325251463,1.83595946,3327.3,3326.8,0.03784699]
[1738325251863,1.83595946,3327.3,3326.7,3.10412072]
[1738325252023,1.83595946,3327.3,3326.9,0.03784699]
[1738325252224,1.83595946,3327.3,3326.7,3.10412072]
[1738325252528,1.86615097,3327.3,3326.7,3.10412072]
[1738325252750,1.86615097,3327.3,3326.8,0.03784699]
[1738325252955,1.86615097,3327.3,3326.7,3.10412072]
[1738325253155,1.86615097,3327.3,3326.8,0.03784699]
[1738325253321,1.86615097,3327.3,3326.5,3.0]
[1738325253525,1.86615097,3327.3,3326.6,0.03784699]
[1738325254041,1.83595946,3327.3,3326.6,0.03784699]
[1738325254351,1.83595946,3327.3,3326.7,2.81919541]
[1738325254553,1.86615097,3327.3,3326.7,2.81919541]
[1738325254725,1.86615097,3327.3,3326.8,0.03784699]
[1738325254926,1.86615097,3327.3,3326.7,2.81919541]
[1738325255231,1.86615097,3327.3,3326.8,0.03784699]
[1738325255639,1.86615097,3327.3,3326.7,2.81919541]
[1738325255841,1.86615097,3327.3,3326.9,0.03784699]
[1738325256028,1.86615097,3327.3,3326.7,2.81919541]
[1738325256561,1.86615097,3327.3,3326.8,0.03764754]
[1738325256759,1.86615097,3327.3,3326.7,2.81919541]
[1738325257068,1.86615097,3327.3,3326.8,0.03764754]
[1738325257269,1.83595946,3327.3,3326.8,0.03764754]
[1738325257452,1.83595946,3327.3,3326.8,0.28568429]
[1738325257657,1.83595946,3327.3,3326.9,0.03764754]
[1738325257956,1.83595946,3327.3,3326.7,2.81919541]
[1738325258154,1.83595946,3327.3,3326.8,0.03764754]
[1738325258356,1.83595946,3327.3,3326.7,2.81919541]
[1738325258558,1.83595946,3327.3,3326.8,0.0374335]
[1738325258873,1.83595946,3327.3,3326.7,2.81919541]
[1738325259034,1.86615097,3327.3,3326.9,0.0374335]
[1738325259234,1.86615097,3327.3,3326.5,3.0]
[1738325259473,1.86615097,3327.3,3327.0,0.03735568]
[1738325259631,0.7816,3327.1,3326.1,3.43321835]
[1738325259976,0.7816,3327.1,3326.2,3.0]
[1738325259977,0.03019151,3327.0,3326.2,3.0]
[1738325260175,0.7816,3327.1,3326.4,2.81919541]
[1738325261070,0.03019151,3327.0,3326.4,2.81919541]
[1738325261232,0.03019151,3326.9,3326.4,2.81919541]
[1738325261659,0.03019151,3326.9,3326.5,0.03752106]
[1738325261918,0.81179151,3327.1,3326.5,0.03752106]
[1738325262582,0.7816,3327.1,3326.5,0.03752106]
[1738325262936,0.7816,3327.1,3326.5,0.32319271]
[1738325263181,0.7816,3327.1,3326.7,2.81919541]
[1738325263366,1.83595946,3327.3,3326.7,2.81919541]
[1738325263544,1.83595946,3327.3,3326.8,0.03752106]
[1738325263752,1.83595946,3327.3,3326.7,2.81919541]
[1738325264073,1.83595946,3327.3,3326.8,0.03752106]
[1738325264426,1.83595946,3327.3,3327.0,2.81919541]
[1738325264631,1.83595946,3327.3,3326.7,3.13268785]
[1738325264831,0.03019151,3327.2,3327.1,0.03752106]
[1738325265078,1.83595946,3327.3,3326.8,3.0]
[1738325265382,1.83595946,3327.3,3326.9,0.03005495]
[1738325265537,1.83595946,3327.3,3327.0,0.03736054]
[1738325265875,1.83595946,3327.3,3326.9,0.03005495]
[1738325266294,0.8333,3327.8,3327.1,3.0]
[1738325266450,1.83595946,3328.3,3327.7,2.81919541]
[1738325266451,2.66925946,3328.3,3327.7,2.81919541]
[1738325266958,2.66925946,3328.3,3327.8,0.03733622]
[1738325267152,2.69945097,3328.3,3327.7,2.81919541]
[1738325267545,2.69945097,3328.3,3327.8,0.03715143]
[1738325267746,2.69945097,3328.3,3327.7,2.81919541]
[1738325268073,2.69945097,3328.3,3327.8,0.03715143]
[1738325268588,2.69945097,3328.3,3327.9,0.03702015]
[1738325268790,3.68005822,3328.3,3327.5,3.0]
[1738325268990,0.015,3328.2,3327.6,0.03702015]
[1738325269142,0.03019151,3328.1,3327.6,0.03702015]
[1738325270099,0.7534,3327.9,3327.6,0.03702015]
[1738325270306,0.03019151,3327.8,3327.6,0.03702015]
[1738325270525,0.03019151,3327.8,3326.8,2.98599726]
[1738325270526,0.03019151,3327.8,3326.8,2.81919541]
[1738325270826,0.7534,3327.7,3326.9,0.0367867]
[1738325271002,0.03019151,3327.6,3326.9,0.0367867]
[1738325271517,0.7684,3327.5,3326.9,0.0367867]
[1738325271685,0.03019151,3327.4,3326.9,0.0367867]
[1738325271885,0.03019151,3327.4,3326.5,2.98808994]
[1738325272201,0.03019151,3327.4,3326.5,2.81919541]
[1738325272400,0.7534,3327.2,3326.6,0.03705416]
[1738325272590,1.0153551,3327.2,3326.6,0.03705416]
[1738325272920,0.59144988,3327.8,3327.1,2.81919541]
[1738325272921,0.7534,3327.8,3327.1,2.81919541]
[1738325273228,0.7534,3327.8,3327.4,2.81919541]
[1738325273525,2.65705946,3328.2,3327.4,2.81919541]
[1738325274025,2.68725097,3328.2,3327.5,0.03713685]
[1738325275579,2.65705946,3328.2,3327.3,3.46709309]
[1738325275774,2.65705946,3328.2,3327.4,0.03691312]
[1738325276404,2.65705946,3328.2,3327.4,0.06696319]
[1738325276643,1.83595946,3328.2,3327.7,3.46709309]
[1738325276926,1.83595946,3328.2,3327.8,3.0]
[1738325277279,1.83595946,3328.2,3327.9,0.03691312]
[1738325277678,1.83595946,3328.2,3327.9,0.68731374]
[1738325278628,1.83595946,3328.2,3327.9,0.03691312]
[1738325278805,0.03019151,3328.1,3327.9,0.03691312]
[1738325279122,0.03019151,3328.1,3327.4,3.7589]
[1738325279331,1.83595946,3328.2,3328.0,0.03691312]
[1738325279627,1.83595946,3328.2,3328.1,0.03691312]
[1738325279991,1.83595946,3328.2,3327.8,3.0]
[1738325280198,1.83595946,3328.2,3327.9,0.03664084]
[1738325282044,1.83595946,3328.2,3327.9,0.06668672]
[1738325282220,1.83595946,3328.2,3328.0,0.30666867]
[1738325282377,1.83595946,3328.2,3328.1,0.03646095]
[1738325282579,1.83595946,3328.2,3327.8,3.0]
[1738325282779,1.83595946,3328.2,3327.9,0.03646095]
[1738325283183,7.40853659,3328.4,3328.2,3.0]
[1738325283495,7.40853659,3329.0,3328.3,0.03637831]
[1738325283888,7.40853659,3329.0,3328.2,3.0]
[1738325283889,0.03019151,3328.9,3328.2,3.0]
[1738325284102,8.23163025,3329.0,3328.4,0.03637831]
[1738325284306,8.23163025,3329.0,3328.3,0.03626652]
[1738325284478,7.40853659,3329.0,3328.2,3.03004387]
[1738325284680,7.40853659,3329.0,3328.4,0.03626652]
[1738325284906,7.40853659,3329.0,3328.2,3.0]
[1738325285106,0.03019151,3328.9,3328.5,0.03626652]
[1738325285305,0.03019151,3328.9,3328.2,3.0]
[1738325285507,0.03019151,3328.9,3328.6,0.03557041]
[1738325285706,0.03019151,3328.9,3328.2,3.0]
[1738325285910,7.40853659,3329.0,3328.7,0.03554611]
[1738325286109,7.40853659,3329.0,3328.2,3.67675214]
[1738325286311,7.40853659,3329.0,3328.8,0.03554611]
[1738325286530,7.40853659,3329.0,3328.2,3.67675214]
[1738325286722,7.40853659,3329.0,3328.9,0.03554611]
[1738325286932,7.40853659,3329.6,3329.0,3.0]
[1738325287144,0.79508888,3329.6,3329.5,3.46709309]
[1738325287424,0.8044,3330.5,3329.6,3.7929]
[1738325287623,0.8044,3330.5,3329.9,3.46709309]
[1738325287981,0.8044,3330.5,3330.0,0.03530315]
[1738325288212,0.8044,3330.5,3329.9,3.46709309]
[1738325288434,0.8044,3330.5,3330.0,0.03530315]
[1738325288861,0.8044,3330.5,3329.9,3.46709309]
[1738325289028,0.8044,3330.5,3330.1,0.03471548]
[1738325289216,0.8044,3330.5,3330.0,0.03470091]
[1738325289411,0.8044,3330.5,3329.9,3.46709309]
[1738325289654,0.8044,3330.5,3330.0,0.03470091]
[1738325289971,0.8044,3330.5,3329.9,3.46709309]
[1738325290127,0.8044,3330.5,3330.0,0.03470091]
[1738325290315,0.8044,3330.5,3330.0,0.06472889]
[1738325290655,0.8044,3330.5,3330.1,0.03470091]
[1738325291039,0.015,3330.2,3329.1,3.46709309]
[1738325291372,0.015,3330.0,3328.7,3.46709309]
[1738325291660,0.79508888,3329.9,3329.2,0.8008]
[1738325291815,0.79508888,3329.9,3329.5,3.46709309]
[1738325292142,1.55618888,3330.3,3329.5,3.46709309]
[1738325292348,1.55618888,3330.3,3329.6,0.06274566]
[1738325292723,0.7611,3330.3,3329.6,0.41572954]
[1738325292923,0.7861,3330.7,3329.6,0.41572954]
[1738325293218,0.82528039,3330.6,3329.6,3.38569931]
[1738325293427,0.015,3330.5,3329.6,0.03271543]
[1738325293935,0.015,3330.5,3329.5,3.46709309]
[1738325294115,0.813,3330.4,3329.6,0.03271543]
[1738325294321,0.015,3330.3,3329.6,0.03271543]
[1738325294515,1.60808888,3330.4,3329.4,3.4629625]
[1738325294714,1.60808888,3330.4,3329.5,0.81204702]
[1738325295026,1.60808888,3330.4,3329.6,0.03002922]
[1738325295214,1.63828039,3330.4,3329.6,2.81352141]
[1738325295413,1.63828039,3330.4,3329.7,0.03154702]
[1738325296624,0.015,3330.3,3329.7,0.03154702]
[1738325296830,0.8082,3330.1,3329.3,2.81352141]
[1738325297035,0.015,3329.9,3329.8,0.03154702]
[1738325297229,0.16032889,3330.0,3329.3,2.81352141]
[1738325297435,0.7678,3330.6,3330.0,3.0]
[1738325297631,0.7678,3331.4,3330.5,2.81352141]
[1738325297834,0.03019151,3331.3,3330.5,2.81352141]
[1738325298014,0.015,3331.2,3330.0,3.0]
[1738325298258,0.7791,3331.1,3330.2,2.81352141]
[1738325298422,0.015,3330.8,3330.1,0.03154702]
[1738325298615,0.04519151,3330.8,3330.1,0.03154702]
[1738325298814,0.0075,3330.4,3329.6,2.81352141]
[1738325299042,0.03769151,3330.4,3329.7,0.03154702]
[1738325299250,0.0075,3330.3,3329.7,0.03154702]
[1738325299455,0.015,3330.1,3329.7,0.03154702]
[1738325299659,0.015,3329.7,3329.0,2.81352141]
[1738325299869,0.84028039,3329.7,3329.0,2.81352141]
[1738325300020,1.00743843,3329.7,3328.7,0.42678931]
[1738325300225,0.97724692,3329.7,3328.9,2.81352141]
[1738325300637,0.03019151,3329.6,3328.9,2.81352141]
[1738325300839,0.8293,3329.5,3328.6,2.81352141]
[1738325301040,0.015,3329.1,3328.3,2.81352141]
[1738325301274,0.79508888,3329.1,3328.3,2.81352141]
[1738325301421,0.79508888,3329.1,3328.6,2.81352141]
[1738325301622,0.79508888,3329.1,3328.9,2.81352141]
[1738325302271,0.79508888,3329.1,3328.6,2.81352141]
[1738325302621,0.03019151,3329.0,3328.4,2.8155655]
[1738325302822,0.7862,3328.9,3328.2,2.379]
[1738325303038,0.015,3328.7,3328.1,2.8155655]
[1738325303358,1.62098888,3328.6,3327.8,2.8155655]
[1738325303562,1.62098888,3328.6,3328.0,3.46590603]
[1738325304263,1.62098888,3328.6,3328.1,3.0]
[1738325304471,0.79508888,3328.6,3328.1,3.03004458]
[1738325304675,0.79508888,3328.6,3328.2,0.64959506]
[1738325304880,0.61119471,3329.4,3328.5,3.0]
[1738325305034,0.8301,3329.5,3328.8,3.53353489]
[1738325305782,0.04519151,3329.4,3328.4,3.53353489]
[1738325306283,0.015,3329.2,3328.4,3.53353489]
[1738325306479,0.03019151,3329.2,3328.4,3.95184788]
[1738325306785,0.03019151,3329.2,3328.5,0.03024993]
[1738325307745,0.015,3329.1,3328.5,0.03024993]
[1738325307947,0.7825,3328.9,3328.5,0.03024993]
[1738325308173,0.03019151,3328.8,3328.1,3.0]
[1738325308373,0.7825,3328.9,3328.2,0.68360342]
[1738325310091,0.03019151,3328.8,3328.2,0.68360342]
[1738325310387,0.015,3328.7,3328.2,0.03024993]
[1738325310601,0.8181,3328.6,3328.2,0.03024993]
[1738325310742,0.8181,3328.6,3328.1,3.53353489]
[1738325310942,0.8181,3328.6,3328.2,0.03116233]
[1738325312770,1.61958888,3329.0,3328.5,3.53353489]
[1738325312967,1.61958888,3329.0,3328.6,0.03128858]
[1738325313284,0.03019151,3328.9,3328.6,0.03128858]
[1738325313448,1.61958888,3329.0,3328.6,0.03128858]
[1738325314961,1.57478888,3329.7,3328.9,3.53353489]
[1738325315165,1.8210573,3329.7,3328.9,3.53353489]
[1738325315478,0.04519151,3329.6,3329.0,0.03114777]
[1738325315680,0.015,3329.6,3329.0,0.03114777]
[1738325316681,0.7797,3329.7,3329.3,3.53353489]
[1738325316856,0.79508888,3330.0,3329.4,0.35335349]
[1738325317055,0.79508888,3330.0,3329.4,3.3844964]
[1738325317666,0.82528039,3330.0,3329.4,3.3844964]
[1738325318457,0.79508888,3330.0,3329.4,3.3844964]
[1738325318799,0.82528039,3330.0,3329.5,0.69180313]
[1738325318971,0.82528039,3330.0,3329.4,3.0]
[1738325319171,0.82528039,3330.0,3329.5,0.03114291]
[1738325319576,0.79508888,3330.0,3329.5,0.03114291]
[1738325319956,0.03019151,3329.9,3329.5,0.03114291]
[1738325320157,0.8057,3329.7,3329.5,0.03114291]
[1738325320458,0.83589151,3329.7,3329.3,3.53353489]
[1738325320663,0.83589151,3329.7,3329.6,0.03114291]
[1738325320858,0.83589151,3329.7,3329.3,3.53353489]
[1738325321060,0.83589151,3329.7,3329.6,0.03067695]
[1738325321404,0.85089151,3329.7,3329.6,0.03067695]
[1738325321612,1.01698955,3329.7,3329.0,3.0]
[1738325321900,0.03019151,3329.6,3329.1,0.03067695]
[1738325322660,0.015,3329.5,3329.1,0.03067695]
[1738325322860,0.82528039,3329.6,3329.1,0.03067695]
[1738325322861,0.015,3329.3,3329.1,0.03067695]
[1738325323061,0.015,3329.1,3328.5,3.53353489]
[1738325323309,0.21338955,3329.1,3328.2,0.16978426]
[1738325323604,1.00847843,3329.1,3328.2,3.0]
[1738325323817,1.00847843,3329.1,3328.1,3.53353489]
[1738325324163,0.97828692,3329.1,3328.2,3.0]
[1738325324378,0.81008888,3329.1,3328.5,3.53353489]
[1738325324610,0.81008888,3329.1,3327.8,0.99374657]
[1738325324611,0.81008888,3329.1,3328.8,2.7447796]
[1738325324958,0.84028039,3329.1,3328.5,2.7447796]
[1738325325158,0.015,3328.9,3328.5,2.7447796]
[1738325325402,0.04519151,3328.9,3328.5,2.7447796]
[1738325325607,1.00166843,3328.9,3328.2,2.7447796]
[1738325325816,0.015,3328.7,3328.2,2.7447796]
[1738325326107,0.04519151,3328.7,3328.2,2.7447796]
[1738325327467,0.04519151,3328.7,3328.0,3.0]
[1738325328065,0.04519151,3328.7,3327.9,2.7447796]
[1738325328265,0.015,3328.5,3327.9,2.7447796]
[1738325328479,0.04519151,3328.5,3327.9,2.7447796]
[1738325328686,0.015,3328.3,3327.6,2.7447796]
[1738325328920,0.7634,3328.2,3327.6,2.7447796]
[1738325329096,0.03019151,3328.1,3327.6,2.7447796]
[1738325329501,0.015,3328.0,3327.3,2.7447796]
[1738325329745,0.015,3327.6,3327.0,2.7447796]
[1738325330077,0.81008888,3327.6,3327.0,2.7447796]
[1738325330552,0.015,3327.4,3327.0,2.7447796]
[1738325330763,0.79508888,3327.6,3327.0,2.7447796]
[1738325331266,0.79508888,3327.6,3327.3,2.7447796]
[1738325331422,0.7964,3328.1,3327.3,2.7447796]
[1738325331625,0.7964,3328.1,3327.9,2.7447796]
[1738325332065,0.60704593,3328.4,3327.9,2.7447796]
[1738325332242,0.60704593,3328.4,3327.6,0.8204]
[1738325332243,0.7772,3328.5,3328.3,2.7447796]
[1738325332450,0.80739151,3328.5,3328.0,2.7447796]
[1738325332636,0.93592889,3328.5,3328.0,2.7447796]
[1738325332963,0.7772,3328.5,3328.0,2.7447796]
[1738325333975,0.03019151,3328.4,3328.0,2.7447796]
[1738325334460,0.03019151,3328.4,3328.1,0.02848713]
[1738325334655,0.7772,3328.5,3328.1,0.02848713]
[1738325334878,0.8211,3329.1,3328.3,2.7447796]
[1738325335062,0.03019151,3329.0,3328.3,2.7447796]
[1738325335232,0.16463804,3328.9,3328.3,2.7447796]
[1738325335574,0.03019151,3328.8,3328.4,0.02848713]
[1738325336076,0.7638,3328.6,3328.4,0.02848713]
[1738325336428,0.7638,3328.6,3328.1,3.0]
[1738325336628,0.03019151,3328.5,3328.2,0.02848713]
[1738325337232,0.7638,3328.6,3328.2,0.02848713]
[1738325337597,0.7638,3328.6,3328.3,2.7447796]
[1738325338143,0.7638,3328.6,3328.4,0.02848713]
[1738325340517,0.7638,3329.1,3328.4,0.02848713]
[1738325340652,0.79508888,3329.0,3328.9,2.7447796]
[1738325341085,0.79508888,3329.0,3328.9,2.77326673]
[1738325342195,0.79508888,3329.0,3328.9,0.02848713]
[1738325342597,0.79508888,3329.0,3328.6,2.7447796]
[1738325342912,0.79508888,3329.0,3328.9,2.7447796]
[1738325343211,0.7855,3330.3,3328.9,3.5017796]
[1738325343358,8.85,3330.2,3329.8,2.7447796]
[1738325343857,8.85,3330.2,3329.9,0.02848713]
[1738325344110,9.81355,3330.2,3329.9,0.02848713]
[1738325344310,8.85,3330.1,3329.9,0.02848713]
[1738325344457,8.85,3330.1,3330.0,2.7447796]
[1738325344665,8.85,3330.4,3330.0,2.7447796]
[1738325344894,0.03019151,3330.3,3330.0,2.7447796]
[1738325345207,8.85,3330.4,3330.0,2.7447796]
[1738325346261,0.7977,3330.6,3330.0,2.7447796]
[1738325346262,8.85,3330.5,3330.0,2.7447796]
[1738325347867,9.6172,3330.9,3330.3,2.7447796]
[1738325348221,9.81322,3330.8,3330.3,2.7447796]
[1738325348413,8.85,3330.8,3330.3,2.7447796]
[1738325348714,8.85,3330.8,3330.4,3.0]
[1738325349483,0.812,3331.3,3330.6,2.7447796]
[1738325350018,0.84219151,3331.3,3330.6,2.7447796]
[1738325350368,0.015,3331.2,3330.6,2.7447796]
[1738325350665,0.812,3331.3,3330.6,2.7447796]
[1738325351020,0.015,3331.1,3330.6,2.7447796]
[1738325351179,0.015,3331.1,3330.4,3.0]
[1738325352419,0.015,3331.2,3330.4,3.0]
[1738325352625,0.015,3331.2,3330.6,2.7447796]
[1738325352827,0.0075,3331.2,3330.6,2.7447796]
[1738325353033,8.85,3331.2,3331.0,3.0]
[1738325353583,8.85,3331.2,3330.9,2.7447796]
[1738325353584,0.0075,3331.1,3330.6,2.7447796]
[1738325353815,0.7968,3331.0,3330.6,2.7447796]
[1738325354005,9.6468,3331.0,3330.6,2.7447796]
[1738325354340,10.61524915,3331.0,3330.7,3.0]
[1738325355031,0.03019151,3330.9,3330.7,3.0]
[1738325355179,0.0075,3330.8,3330.7,3.0]
[1738325356001,0.015,3330.9,3330.7,3.0]
[1738325356713,8.85,3330.8,3330.6,2.7447796]
[1738325357009,0.8865,3330.7,3330.6,2.7447796]
[1738325358632,0.015,3330.6,3330.3,2.7447796]
[1738325358936,8.85,3330.5,3330.3,2.7447796]
[1738325359093,8.85,3330.5,3330.4,2.7447796]
[1738325359611,8.85,3330.5,3330.4,5.7447796]
[1738325360739,9.83115,3330.5,3330.1,2.7447796]